[Event "GrandPrix_29.05"]
[Site "Chess.com"]
[Date "2020.05.29"]
[Round "4"]
[White "Zhuu96"]
[Black "Infernal_XaM"]
[Result "0-1"]
[WhiteElo "2587"]
[BlackElo "2877"]
[TimeControl "600+2"]
[EndTime "11:01:26 PDT"]
[Termination "Infernal_XaM won by resignation"]

1. d4 {[%clk 0:09:31.9]} 1... Nf6 {[%clk 0:10:00.4]} 2. Nf3 {[%clk 0:09:31.6]}
2... e6 {[%clk 0:10:00.3]} 3. c4 {[%clk 0:09:30.3]} 3... c5 {[%clk 0:10:00.8]}
4. g3 {[%clk 0:09:27.9]} 4... cxd4 {[%clk 0:09:54.4]} 5. Nxd4 {[%clk 0:09:28.5]}
5... Nc6 {[%clk 0:09:52.2]} 6. Bg2 {[%clk 0:09:28.4]} 6... Ne5 {[%clk
0:09:51.7]} 7. Nd2 {[%clk 0:09:10.5]} 7... Bc5 {[%clk 0:09:47.4]} 8. N2b3 {[%clk
0:08:59.9]} 8... Nxc4 {[%clk 0:09:17.3]} 9. Nxc5 {[%clk 0:08:12]} 9... Qa5+
{[%clk 0:09:17.4]} 10. Bd2 {[%clk 0:08:13.1]} 10... Qxc5 {[%clk 0:08:59.9]} 11.
Bc3 {[%clk 0:08:09.1]} 11... O-O {[%clk 0:08:12.1]} 12. Rc1 {[%clk 0:08:05.1]}
12... Qb6 {[%clk 0:07:47.5]} 13. b3 {[%clk 0:07:52]} 13... Ne5 {[%clk
0:07:43.8]} 14. Qd2 {[%clk 0:07:28.6]} 14... d5 {[%clk 0:07:35.3]} 15. O-O
{[%clk 0:06:17.8]} 15... Ng6 {[%clk 0:07:20.5]} 16. a4 {[%clk 0:05:39.9]} 16...
Bd7 {[%clk 0:07:16]} 17. Ba5 {[%clk 0:05:39.6]} 17... Qa6 {[%clk 0:07:17]} 18.
Bc7 {[%clk 0:05:40.4]} 18... Rac8 {[%clk 0:07:09]} 19. Rfe1 {[%clk 0:05:27.4]}
19... b6 {[%clk 0:06:29.3]} 20. Bd6 {[%clk 0:04:51.9]} 20... Rxc1 {[%clk
0:06:29]} 21. Rxc1 {[%clk 0:04:52.5]} 21... Rc8 {[%clk 0:06:30.6]} 22. e3 {[%clk
0:04:53.4]} 22... e5 {[%clk 0:06:19.7]} 23. Rxc8+ {[%clk 0:04:53.6]} 23... Qxc8
{[%clk 0:06:20.1]} 24. Ne2 {[%clk 0:04:48]} 24... Be6 {[%clk 0:06:01.9]} 25. Nc3
{[%clk 0:04:29.6]} 25... Qc6 {[%clk 0:05:54.6]} 26. Ba3 {[%clk 0:04:16.6]} 26...
h6 {[%clk 0:05:52.2]} 27. Bb2 {[%clk 0:03:57.4]} 27... Qc5 {[%clk 0:05:37.6]}
28. Nb5 {[%clk 0:03:56.7]} 28... a6 {[%clk 0:05:37.2]} 29. Ba3 {[%clk
0:03:56.7]} 29... Qc8 {[%clk 0:05:06.5]} 30. Nd6 {[%clk 0:03:49.5]} 30... Qc6
{[%clk 0:04:45.9]} 31. h4 {[%clk 0:03:37.4]} 31... Nf8 {[%clk 0:04:30.6]} 32.
Bf1 {[%clk 0:03:20.1]} 32... a5 {[%clk 0:04:25.3]} 33. Nb5 {[%clk 0:03:16.2]}
33... N8d7 {[%clk 0:04:20.2]} 34. Bb2 {[%clk 0:03:16]} 34... Ne4 {[%clk
0:04:17.9]} 35. Qd1 {[%clk 0:03:16.8]} 35... Nec5 {[%clk 0:04:08.9]} 36. Bg2
{[%clk 0:03:14.5]} 36... Ne4 {[%clk 0:03:47.7]} 37. Bf3 {[%clk 0:03:06.9]} 37...
f6 {[%clk 0:03:36.8]} 38. Bg2 {[%clk 0:03:05.8]} 38... Ndc5 {[%clk 0:03:34.7]}
39. Qc2 {[%clk 0:02:58.5]} 39... Qd7 {[%clk 0:03:32.1]} 40. Ba3 {[%clk
0:02:59.2]} 40... Bf5 {[%clk 0:03:27.2]} 41. Qd1 {[%clk 0:02:59.3]} 41... Bh3
{[%clk 0:03:18.6]} 42. Bxh3 {[%clk 0:02:57.2]} 42... Qxh3 {[%clk 0:03:18.6]} 43.
Qxd5+ {[%clk 0:02:58.2]} 43... Qe6 {[%clk 0:03:10.3]} 44. Qxe6+ {[%clk
0:01:56.7]} 44... Nxe6 {[%clk 0:03:09.9]} 45. Nd6 {[%clk 0:01:50.4]} 45... Nd2
{[%clk 0:02:34.5]} 46. Nc8 {[%clk 0:01:50.7]} 46... Nxb3 {[%clk 0:02:33.4]} 47.
Nxb6 {[%clk 0:01:51.5]} 47... Nd2 {[%clk 0:02:24.6]} 48. Bb2 {[%clk 0:01:51.3]}
48... Nc5 {[%clk 0:02:19.6]} 49. Bc3 {[%clk 0:01:51.5]} 49... Ndb3 {[%clk
0:02:11.6]} 50. Kf1 {[%clk 0:01:52.2]} 50... Kf7 {[%clk 0:02:11.3]} 51. Ke2
{[%clk 0:01:52.5]} 51... Ke6 {[%clk 0:02:07.8]} 52. Be1 {[%clk 0:01:46]} 52...
e4 {[%clk 0:01:48.3]} 53. Bc3 {[%clk 0:01:40.9]} 53... Kd6 {[%clk 0:01:44]} 54.
Nc4+ {[%clk 0:01:38.4]} 54... Kd5 {[%clk 0:01:44.6]} 55. Nxa5 {[%clk 0:01:39.7]}
55... Nc1+ {[%clk 0:01:37.7]} 56. Kf1 {[%clk 0:01:37.3]} 56... Nxa4 {[%clk
0:01:36.7]} 57. Bb4 {[%clk 0:01:38.5]} 57... h5 {[%clk 0:01:34.5]} 58. Ba3
{[%clk 0:01:37.6]} 58... Nd3 {[%clk 0:01:34.2]} 59. Nb3 {[%clk 0:01:38.6]} 59...
Nc3 {[%clk 0:01:30]} 60. Nd4 {[%clk 0:01:38.4]} 60... Nd1 {[%clk 0:01:29.5]} 61.
Nf5 {[%clk 0:01:34.5]} 61... g6 {[%clk 0:01:15.8]} 62. Ne7+ {[%clk 0:01:34]}
62... Ke6 {[%clk 0:01:12.7]} 63. Nxg6 {[%clk 0:01:35]} 63... N1xf2 {[%clk
0:01:10.4]} 64. Ke2 {[%clk 0:01:16.6]} 64... Nh1 {[%clk 0:01:05.5]} 65. Nf4+
{[%clk 0:01:08.8]} 65... Nxf4+ {[%clk 0:01:03.5]} 66. gxf4 {[%clk 0:01:09.8]}
66... Ng3+ {[%clk 0:01:05]} 67. Kf2 {[%clk 0:01:07.7]} 67... Nf5 {[%clk
0:01:06.3]} 68. Bc5 {[%clk 0:01:07.6]} 68... Nxh4 {[%clk 0:01:06.8]} 69. Kg3
{[%clk 0:01:08.4]} 69... Nf5+ {[%clk 0:01:08.1]} 70. Kg2 {[%clk 0:01:09.7]}
70... Kd5 {[%clk 0:01:09.1]} 71. Bb6 {[%clk 0:01:10.7]} 71... Kc4 {[%clk
0:01:10.3]} 72. Kf2 {[%clk 0:01:10.7]} 72... Kd3 {[%clk 0:01:06.2]} 73. Ba7
{[%clk 0:01:08.4]} 73... h4 {[%clk 0:00:57.7]} 74. Bb6 {[%clk 0:01:09.1]} 74...
Nh6 {[%clk 0:00:58.5]} 75. Kg2 {[%clk 0:01:08.5]} 75... Ng4 {[%clk 0:00:57.7]}
76. Kh3 {[%clk 0:01:09.5]} 76... Nxe3 {[%clk 0:00:58.8]} 77. Kxh4 {[%clk
0:01:10.8]} 77... Nd5 {[%clk 0:01:00.4]} 78. Ba7 {[%clk 0:01:08.6]} 78... Nxf4
{[%clk 0:00:57.6]} 79. Kg4 {[%clk 0:01:07.9]} 79... Nd5 {[%clk 0:00:59]} 80. Kf5
{[%clk 0:01:09.2]} 80... e3 {[%clk 0:01:00.4]} 81. Ke6 {[%clk 0:01:10.6]} 81...
e2 {[%clk 0:01:00.4]} 82. Bf2 {[%clk 0:01:10.6]} 82... Ke4 {[%clk 0:01:02]} 0-1

[Event "GrandPrix_29.05"]
[Site "Chess.com"]
[Date "2020.05.29"]
[Round "4"]
[White "1stSecond"]
[Black "Luq27"]
[Result "1-0"]
[WhiteElo "2592"]
[BlackElo "2337"]
[TimeControl "600+2"]
[EndTime "11:01:28 PDT"]
[Termination "1stSecond won on time"]

1. Nf3 {[%clk 0:10:01.9]} 1... Nf6 {[%clk 0:10:00.2]} 2. g3 {[%clk 0:10:00.3]}
2... d5 {[%clk 0:09:59.3]} 3. Bg2 {[%clk 0:09:58.5]} 3... c6 {[%clk 0:10:00.3]}
4. O-O {[%clk 0:09:58.5]} 4... Bf5 {[%clk 0:10:01.3]} 5. d3 {[%clk 0:09:58.6]}
5... Nbd7 {[%clk 0:09:57.5]} 6. Nbd2 {[%clk 0:09:14.2]} 6... h6 {[%clk
0:09:28.5]} 7. Re1 {[%clk 0:08:59]} 7... e6 {[%clk 0:09:18.3]} 8. e4 {[%clk
0:08:58.9]} 8... dxe4 {[%clk 0:09:19.2]} 9. dxe4 {[%clk 0:08:55.8]} 9... Bh7
{[%clk 0:09:20.2]} 10. e5 {[%clk 0:07:36.1]} 10... Nd5 {[%clk 0:09:19.3]} 11. a3
{[%clk 0:07:36.5]} 11... Be7 {[%clk 0:08:55.7]} 12. Ne4 {[%clk 0:07:05.4]} 12...
O-O {[%clk 0:08:52.9]} 13. Qe2 {[%clk 0:06:58.3]} 13... Qc7 {[%clk 0:08:05.7]}
14. c4 {[%clk 0:06:56.6]} 14... N5b6 {[%clk 0:07:53.9]} 15. Bf4 {[%clk
0:06:57.7]} 15... Rfd8 {[%clk 0:07:27.6]} 16. h4 {[%clk 0:06:57.8]} 16... Bxe4
{[%clk 0:07:24.9]} 17. Qxe4 {[%clk 0:06:56.5]} 17... Nc5 {[%clk 0:07:26.3]} 18.
Qc2 {[%clk 0:06:50.3]} 18... Nd3 {[%clk 0:07:23.2]} 19. Re4 {[%clk 0:06:50.3]}
19... Nxf4 {[%clk 0:07:21.5]} 20. Rxf4 {[%clk 0:06:52.2]} 20... Nd7 {[%clk
0:07:07.3]} 21. Re1 {[%clk 0:06:47.1]} 21... Nc5 {[%clk 0:07:01.1]} 22. Bf1
{[%clk 0:06:47.7]} 22... a5 {[%clk 0:06:58.1]} 23. b4 {[%clk 0:06:43.2]} 23...
axb4 {[%clk 0:06:59.1]} 24. axb4 {[%clk 0:06:45.1]} 24... Na6 {[%clk 0:07:00.7]}
25. c5 {[%clk 0:06:46.6]} 25... Nxb4 {[%clk 0:07:01.4]} 26. Rxb4 {[%clk
0:06:47.2]} 26... Rd5 {[%clk 0:06:44.4]} 27. Qb2 {[%clk 0:06:37]} 27... Ra7
{[%clk 0:05:25.9]} 28. Rb1 {[%clk 0:06:36.9]} 28... Rd7 {[%clk 0:05:26.9]} 29.
Qc1 {[%clk 0:05:49.3]} 29... Qa5 {[%clk 0:04:52]} 30. Rg4 {[%clk 0:05:28.5]}
30... Kh8 {[%clk 0:04:26.4]} 31. Rc4 {[%clk 0:05:03.8]} 31... Rd5 {[%clk
0:04:26.8]} 32. Qf4 {[%clk 0:05:02.4]} 32... Kg8 {[%clk 0:04:20.3]} 33. Qe4
{[%clk 0:04:42.2]} 33... Bxc5 {[%clk 0:03:34.2]} 34. Bd3 {[%clk 0:04:41.3]}
34... Kf8 {[%clk 0:02:07.3]} 35. Qh7 {[%clk 0:04:40.3]} 35... Qa2 {[%clk
0:01:47.3]} 36. Rf1 {[%clk 0:04:01.6]} 36... Ra3 {[%clk 0:01:38.4]} 37. Rc2
{[%clk 0:03:21.1]} 37... Qb3 {[%clk 0:01:13.9]} 38. Be4 {[%clk 0:03:22.2]} 38...
g6 {[%clk 0:01:09.1]} 39. Qh8+ {[%clk 0:03:15.9]} 39... Ke7 {[%clk 0:01:03.3]}
40. Qf6+ {[%clk 0:03:02.3]} 40... Ke8 {[%clk 0:01:04.3]} 41. Bxd5 {[%clk
0:02:57.4]} 41... Qxc2 {[%clk 0:01:05]} 42. Bxe6 {[%clk 0:01:56.7]} 42... fxe6
{[%clk 0:01:06.3]} 43. Qxe6+ {[%clk 0:01:58.4]} 43... Kf8 {[%clk 0:00:41.8]} 44.
Qc8+ {[%clk 0:01:53.3]} 44... Kf7 {[%clk 0:00:41.7]} 45. Qxb7+ {[%clk
0:01:55.2]} 45... Kg8 {[%clk 0:00:40.3]} 46. Qc8+ {[%clk 0:01:53]} 46... Kg7
{[%clk 0:00:32.3]} 47. Qd7+ {[%clk 0:01:53.8]} 47... Kg8 {[%clk 0:00:32.3]} 48.
Qe6+ {[%clk 0:01:33.8]} 48... Kh7 {[%clk 0:00:27.4]} 49. Qf7+ {[%clk 0:01:26.4]}
49... Kh8 {[%clk 0:00:28.3]} 50. Kg2 {[%clk 0:01:19.2]} 50... Ra2 {[%clk
0:00:12.9]} 51. h5 {[%clk 0:01:09.2]} 51... g5 {[%clk 0:00:03.4]} 52. Qf6+
{[%clk 0:01:00.8]} 52... Kh7 {[%clk 0:00:04.5]} 53. e6 {[%clk 0:00:58.3]} 53...
Bxf2 {[%clk 0:00:03.7]} 54. Qg6+ {[%clk 0:00:37.6]} 54... Qxg6 {[%clk
0:00:02.6]} 55. hxg6+ {[%clk 0:00:39.5]} 55... Kxg6 {[%clk 0:00:04.5]} 56. Rxf2
{[%clk 0:00:37.7]} 56... Rxf2+ {[%clk 0:00:06.4]} 57. Kxf2 {[%clk 0:00:39.6]}
57... Kf6 {[%clk 0:00:08]} 58. Ne5 {[%clk 0:00:39]} 58... Kxe6 {[%clk
0:00:07.6]} 59. Nxc6 {[%clk 0:00:35.3]} 59... Kf5 {[%clk 0:00:08.9]} 60. Kf3
{[%clk 0:00:35.2]} 60... h5 {[%clk 0:00:09.8]} 61. Nd4+ {[%clk 0:00:32.4]} 61...
Ke5 {[%clk 0:00:11.2]} 62. Ke3 {[%clk 0:00:30.6]} 62... Kd5 {[%clk 0:00:08.9]}
63. Nf3 {[%clk 0:00:27.3]} 1-0

[Event "GrandPrix_29.05"]
[Site "Chess.com"]
[Date "2020.05.29"]
[Round "4"]
[White "Azatic"]
[Black "Artur0208"]
[Result "1-0"]
[WhiteElo "2598"]
[BlackElo "2328"]
[TimeControl "600+2"]
[EndTime "11:01:32 PDT"]
[Termination "Azatic won by resignation"]

1. e4 {[%clk 0:10:01.9]} 1... e5 {[%clk 0:10:00.8]} 2. Nf3 {[%clk 0:09:58.4]}
2... Nc6 {[%clk 0:10:01.8]} 3. Bb5 {[%clk 0:09:58.7]} 3... a6 {[%clk 0:10:01.9]}
4. Ba4 {[%clk 0:09:59.3]} 4... g6 {[%clk 0:10:02.5]} 5. d4 {[%clk 0:09:55.9]}
5... exd4 {[%clk 0:10:03.3]} 6. Bg5 {[%clk 0:09:51.3]} 6... Be7 {[%clk
0:09:40.8]} 7. Bf4 {[%clk 0:09:44.2]} 7... Nf6 {[%clk 0:09:41.2]} 8. e5 {[%clk
0:09:35.2]} 8... Nh5 {[%clk 0:09:39.9]} 9. Bh6 {[%clk 0:09:31.5]} 9... b5 {[%clk
0:08:12.1]} 10. Bb3 {[%clk 0:09:28.2]} 10... d5 {[%clk 0:08:12.2]} 11. Nxd4
{[%clk 0:07:43.4]} 11... Nxd4 {[%clk 0:06:40.6]} 12. Qxd4 {[%clk 0:07:42.5]}
12... Be6 {[%clk 0:06:17.5]} 13. c3 {[%clk 0:07:35.5]} 13... c5 {[%clk 0:05:59]}
14. Qd2 {[%clk 0:07:29.1]} 14... Qc7 {[%clk 0:05:57.8]} 15. O-O {[%clk 0:07:03]}
15... Qxe5 {[%clk 0:05:58]} 16. Re1 {[%clk 0:06:51.6]} 16... Qd6 {[%clk
0:05:58.6]} 17. a4 {[%clk 0:06:23]} 17... Rb8 {[%clk 0:05:25.3]} 18. axb5 {[%clk
0:06:19.6]} 18... axb5 {[%clk 0:05:27.2]} 19. Na3 {[%clk 0:05:27.6]} 19... Kd8
{[%clk 0:03:23.6]} 20. Bd1 {[%clk 0:04:20.2]} 20... Qd7 {[%clk 0:02:56.2]} 21.
Be2 {[%clk 0:03:12.4]} 21... Re8 {[%clk 0:01:33.6]} 22. Red1 {[%clk 0:02:15.4]}
22... Nf6 {[%clk 0:00:48.4]} 23. Bxb5 {[%clk 0:01:43.6]} 23... Rxb5 {[%clk
0:00:38.9]} 24. Nxb5 {[%clk 0:01:45.5]} 24... Qxb5 {[%clk 0:00:40.7]} 25. c4
{[%clk 0:01:46.7]} 25... Qb4 {[%clk 0:00:25.7]} 26. Qf4 {[%clk 0:01:27.3]} 26...
Kc8 {[%clk 0:00:09.3]} 27. Bg5 {[%clk 0:00:48.3]} 27... Nd7 {[%clk 0:00:03.2]}
28. Ra8+ {[%clk 0:00:40]} 28... Nb8 {[%clk 0:00:04.5]} 29. cxd5 {[%clk
0:00:23.9]} 29... Qxf4 {[%clk 0:00:04.8]} 30. Bxf4 {[%clk 0:00:25.3]} 30... Kb7
{[%clk 0:00:02.5]} 31. Rxb8+ {[%clk 0:00:22.6]} 31... Rxb8 {[%clk 0:00:03.5]}
32. Bxb8 {[%clk 0:00:24.5]} 32... Bxd5 {[%clk 0:00:04.6]} 33. Rxd5 {[%clk
0:00:24.5]} 33... Kxb8 {[%clk 0:00:05.9]} 34. Rd7 {[%clk 0:00:25.7]} 34... Bf6
{[%clk 0:00:07.3]} 35. b3 {[%clk 0:00:25.1]} 35... Bd4 {[%clk 0:00:03.6]} 36.
Rxf7 {[%clk 0:00:24.8]} 36... h5 {[%clk 0:00:04.7]} 37. Kf1 {[%clk 0:00:25.6]}
37... Kc8 {[%clk 0:00:05.6]} 38. Ke2 {[%clk 0:00:26.8]} 38... Kd8 {[%clk
0:00:07]} 39. f4 {[%clk 0:00:28]} 39... Ke8 {[%clk 0:00:08.3]} 40. Rb7 {[%clk
0:00:29.1]} 40... Kf8 {[%clk 0:00:09.8]} 41. Kf3 {[%clk 0:00:30.4]} 41... Kg8
{[%clk 0:00:10.6]} 42. Ke4 {[%clk 0:00:31.8]} 42... Bg1 {[%clk 0:00:11.2]} 43.
h3 {[%clk 0:00:32.7]} 43... Bf2 {[%clk 0:00:11.7]} 44. f5 {[%clk 0:00:34]} 44...
gxf5+ {[%clk 0:00:13]} 45. Kxf5 {[%clk 0:00:35.9]} 45... Be3 {[%clk 0:00:11.9]}
46. g4 {[%clk 0:00:36.9]} 46... hxg4 {[%clk 0:00:12.8]} 47. hxg4 {[%clk
0:00:38.8]} 47... Kf8 {[%clk 0:00:14.6]} 48. Kg6 {[%clk 0:00:39.5]} 48... Bd4
{[%clk 0:00:14.9]} 49. g5 {[%clk 0:00:40.7]} 49... Ke8 {[%clk 0:00:15.5]} 50.
Kf5 {[%clk 0:00:38.5]} 50... Kf8 {[%clk 0:00:16.1]} 51. Kg6 {[%clk 0:00:35.9]}
51... Be3 {[%clk 0:00:15.7]} 52. Rc7 {[%clk 0:00:23.1]} 52... Ke8 {[%clk
0:00:14.5]} 53. Kh5 {[%clk 0:00:15.8]} 53... Kf8 {[%clk 0:00:12.6]} 54. g6
{[%clk 0:00:07.9]} 54... Kg8 {[%clk 0:00:09.5]} 55. Rf7 {[%clk 0:00:08]} 55...
Bd2 {[%clk 0:00:05.2]} 56. Kg4 {[%clk 0:00:09.2]} 56... Be3 {[%clk 0:00:06.1]}
57. Kf5 {[%clk 0:00:10.4]} 57... Bd4 {[%clk 0:00:07.4]} 58. Ke4 {[%clk
0:00:11.6]} 58... Kh8 {[%clk 0:00:08.7]} 59. b4 {[%clk 0:00:10.3]} 59... Bg1
{[%clk 0:00:09.4]} 60. b5 {[%clk 0:00:10]} 60... c4 {[%clk 0:00:10.8]} 61. Rc7
{[%clk 0:00:10.6]} 61... Kg8 {[%clk 0:00:12]} 62. Rxc4 {[%clk 0:00:10.5]} 62...
Kg7 {[%clk 0:00:13.5]} 63. Rc6 {[%clk 0:00:12]} 1-0

[Event "GrandPrix_29.05"]
[Site "Chess.com"]
[Date "2020.05.29"]
[Round "4"]
[White "Sunerorlater"]
[Black "tsvet2005"]
[Result "1/2-1/2"]
[WhiteElo "2267"]
[BlackElo "2184"]
[TimeControl "600+2"]
[EndTime "11:01:32 PDT"]
[Termination "Game drawn by agreement"]

1. e4 {[%clk 0:10:01.9]} 1... c5 {[%clk 0:10:00.1]} 2. Nf3 {[%clk 0:10:02]} 2...
d6 {[%clk 0:10:01.7]} 3. Bb5+ {[%clk 0:10:01]} 3... Nd7 {[%clk 0:10:01.9]} 4. a4
{[%clk 0:10:00.8]} 4... a6 {[%clk 0:10:01.5]} 5. Bc4 {[%clk 0:09:55.2]} 5...
Ngf6 {[%clk 0:10:02]} 6. d3 {[%clk 0:09:52.8]} 6... e6 {[%clk 0:09:59.1]} 7. Nc3
{[%clk 0:09:51.2]} 7... Be7 {[%clk 0:09:58.6]} 8. O-O {[%clk 0:09:51.3]} 8...
O-O {[%clk 0:09:59.2]} 9. Bd2 {[%clk 0:09:45.3]} 9... b6 {[%clk 0:09:58.3]} 10.
Ba2 {[%clk 0:09:41.5]} 10... Bb7 {[%clk 0:09:53.6]} 11. Re1 {[%clk 0:09:41.6]}
11... Qc7 {[%clk 0:09:54.1]} 12. h3 {[%clk 0:09:35]} 12... Rad8 {[%clk
0:09:53.7]} 13. Ne2 {[%clk 0:09:33.1]} 13... Ne5 {[%clk 0:09:41.5]} 14. Nh2
{[%clk 0:09:31]} 14... c4 {[%clk 0:09:11.1]} 15. Nf4 {[%clk 0:08:51.9]} 15...
cxd3 {[%clk 0:07:40.5]} 16. cxd3 {[%clk 0:08:50.4]} 16... Ng6 {[%clk 0:07:40.8]}
17. Rc1 {[%clk 0:08:47.7]} 17... Qb8 {[%clk 0:07:41.3]} 18. Nf3 {[%clk
0:08:20.5]} 18... Rc8 {[%clk 0:07:30.8]} 19. Rxc8 {[%clk 0:08:09.2]} 19... Rxc8
{[%clk 0:07:30.1]} 20. Qb3 {[%clk 0:07:22.4]} 20... Bc6 {[%clk 0:07:07.7]} 21.
Nxg6 {[%clk 0:06:43.8]} 21... hxg6 {[%clk 0:07:09.6]} 22. Ng5 {[%clk 0:06:45.2]}
22... d5 {[%clk 0:06:54.4]} 23. e5 {[%clk 0:06:43.8]} 23... Nd7 {[%clk
0:06:53.6]} 24. d4 {[%clk 0:06:43.7]} 24... b5 {[%clk 0:06:44.6]} 25. a5 {[%clk
0:06:43]} 25... Qc7 {[%clk 0:05:35.8]} 26. h4 {[%clk 0:06:12.8]} 26... Bb7
{[%clk 0:05:23.5]} 27. Rc1 {[%clk 0:06:00.9]} 27... Qd8 {[%clk 0:05:23.2]} 28.
Rxc8 {[%clk 0:06:00.1]} 28... Qxc8 {[%clk 0:05:25.1]} 29. Qf3 {[%clk 0:05:27]}
29... Bxg5 {[%clk 0:05:02]} 30. Bxg5 {[%clk 0:05:25.3]} 30... Qc2 {[%clk
0:04:54.4]} 31. Qc3 {[%clk 0:05:19.9]} 31... Qxc3 {[%clk 0:04:26.2]} 32. bxc3
{[%clk 0:05:20.5]} 32... f6 {[%clk 0:04:25.2]} 33. exf6 {[%clk 0:05:16.7]} 33...
gxf6 {[%clk 0:04:27.1]} 34. Bf4 {[%clk 0:05:14.3]} 34... e5 {[%clk 0:04:13.2]}
35. Be3 {[%clk 0:04:55.4]} 35... Nf8 {[%clk 0:04:00]} 36. Kf1 {[%clk 0:03:50.9]}
36... Ne6 {[%clk 0:03:59.3]} 37. Ke2 {[%clk 0:03:52.1]} 37... exd4 {[%clk
0:03:34.1]} 38. cxd4 {[%clk 0:03:52.4]} 38... f5 {[%clk 0:03:27.1]} 39. Kd3
{[%clk 0:03:48.7]} 39... Kf7 {[%clk 0:03:20.7]} 40. Kc3 {[%clk 0:03:37.2]} 40...
Kf6 {[%clk 0:03:03.3]} 41. Bb1 {[%clk 0:03:32.5]} 41... Bc6 {[%clk 0:02:40.9]}
42. Bd2 {[%clk 0:03:28.9]} 42... Bb7 {[%clk 0:02:34.2]} 43. g3 {[%clk 0:03:29]}
43... Bc6 {[%clk 0:01:46.6]} 44. Kd3 {[%clk 0:03:20.8]} 44... Bb7 {[%clk
0:01:46.3]} 45. Bb4 {[%clk 0:03:13.2]} 45... Nd8 {[%clk 0:01:28.8]} 46. Ba2
{[%clk 0:03:02.2]} 46... Nc6 {[%clk 0:01:20.1]} 47. Bd2 {[%clk 0:03:02.4]} 47...
Ke6 {[%clk 0:01:17.5]} 48. f3 {[%clk 0:03:00]} 48... b4 {[%clk 0:01:07.1]} 49.
g4 {[%clk 0:02:59.3]} 49... fxg4 {[%clk 0:01:07.9]} 50. fxg4 {[%clk 0:03:00.2]}
50... Nxa5 {[%clk 0:01:04.9]} 51. Bxb4 {[%clk 0:02:59]} 51... Nc4 {[%clk
0:01:02]} 52. Bb3 {[%clk 0:02:54.4]} 52... a5 {[%clk 0:00:55.2]} 53. Bc5 {[%clk
0:02:37.5]} 53... Ba6 {[%clk 0:00:50.2]} 54. Kc3 {[%clk 0:02:30.4]} 54... Ne3
{[%clk 0:00:44.4]} 55. h5 {[%clk 0:02:25.6]} 55... Nxg4 {[%clk 0:00:30.1]} 56.
hxg6 {[%clk 0:02:26.2]} 56... Kf6 {[%clk 0:00:21.1]} 57. Bc2 {[%clk 0:02:10]}
57... Ne3 {[%clk 0:00:18.1]} 58. Bb1 {[%clk 0:02:10.5]} 58... Bc8 {[%clk
0:00:14.5]} 59. Bb6 {[%clk 0:01:51.3]} 59... Bf5 {[%clk 0:00:09.2]} 60. Ba2
{[%clk 0:01:23.2]} 60... Nc4 {[%clk 0:00:08.7]} 61. Bxc4 {[%clk 0:00:56.5]}
61... dxc4 {[%clk 0:00:10.6]} 62. Kxc4 {[%clk 0:00:52.9]} 62... Be6+ {[%clk
0:00:10.8]} 63. Kb5 {[%clk 0:00:51.7]} 63... Kxg6 {[%clk 0:00:10.1]} 64. Kxa5
{[%clk 0:00:51.3]} 64... Kf7 {[%clk 0:00:08.9]} 65. Kb4 {[%clk 0:00:52.8]} 65...
Ke8 {[%clk 0:00:09.8]} 66. Kc5 {[%clk 0:00:53.5]} 66... Kd7 {[%clk 0:00:11]} 67.
Ba5 {[%clk 0:00:53.8]} 67... Bf7 {[%clk 0:00:11.8]} 68. Bd2 {[%clk 0:00:52]}
68... Bg8 {[%clk 0:00:09.6]} 1/2-1/2